[Event "Late-Titled-Tuesday-Blitz-April-02-2024"]
[Site "Chess.com"]
[Date "2024.04.02"]
[Round "7"]
[White "AktilekAskarovich"]
[Black "Defend1r"]
[Result "0-1"]
[WhiteElo "2437"]
[BlackElo "2648"]
[TimeControl "180+1"]
[EndTime "15:10:51 PDT"]
[Termination "Defend1r won by resignation"]

1. d4 {[%clk 0:02:59.7]} 1... Nf6 {[%clk 0:02:58.6]} 2. c4 {[%clk 0:02:59.6]}
2... e6 {[%clk 0:02:59.1]} 3. Nf3 {[%clk 0:02:59.7]} 3... b6 {[%clk 0:02:58.3]}
4. a3 {[%clk 0:02:58.6]} 4... Ba6 {[%clk 0:02:56.4]} 5. Qc2 {[%clk 0:02:58.5]}
5... Bb7 {[%clk 0:02:56.5]} 6. Nc3 {[%clk 0:02:58.9]} 6... c5 {[%clk 0:02:53.5]}
7. e4 {[%clk 0:02:59.1]} 7... cxd4 {[%clk 0:02:53.9]} 8. Nxd4 {[%clk 0:03:00]}
8... Bc5 {[%clk 0:02:53.8]} 9. Nf3 {[%clk 0:02:59.4]} 9... Ng4 {[%clk 0:02:53]}
10. Nd1 {[%clk 0:02:54.2]} 10... Nc6 {[%clk 0:02:45.5]} 11. h3 {[%clk
0:02:54.1]} 11... Nge5 {[%clk 0:02:44.3]} 12. Nxe5 {[%clk 0:02:52.9]} 12... Nxe5
{[%clk 0:02:44.4]} 13. b4 {[%clk 0:02:50.7]} 13... Bd4 {[%clk 0:02:42.2]} 14.
Bb2 {[%clk 0:02:49.5]} 14... Bxb2 {[%clk 0:02:41.7]} 15. Qxb2 {[%clk 0:02:49.6]}
15... Qf6 {[%clk 0:02:41.6]} 16. f3 {[%clk 0:02:42.4]} 16... Rc8 {[%clk
0:02:40.4]} 17. Rc1 {[%clk 0:02:41.6]} 17... O-O {[%clk 0:02:36.6]} 18. Be2
{[%clk 0:02:41.6]} 18... d5 {[%clk 0:02:36.4]} 19. exd5 {[%clk 0:02:31.7]} 19...
exd5 {[%clk 0:02:35.7]} 20. c5 {[%clk 0:02:28.5]} 20... d4 {[%clk 0:02:26.3]}
21. Bd3 {[%clk 0:02:20]} 21... Nxd3+ {[%clk 0:02:25.5]} 0-1

[Event "Late-Titled-Tuesday-Blitz-April-02-2024"]
[Site "Chess.com"]
[Date "2024.04.02"]
[Round "7"]
[White "PNEPaul"]
[Black "expii"]
[Result "1/2-1/2"]
[WhiteElo "1978"]
[BlackElo "2219"]
[TimeControl "180+1"]
[EndTime "15:11:26 PDT"]
[Termination "Game drawn by repetition"]

1. e4 {[%clk 0:02:47.2]} 1... c5 {[%clk 0:03:00.1]} 2. Nf3 {[%clk 0:02:46.8]}
2... d6 {[%clk 0:02:53.4]} 3. d4 {[%clk 0:02:46.6]} 3... cxd4 {[%clk 0:02:54.3]}
4. c3 {[%clk 0:02:46.8]} 4... dxc3 {[%clk 0:02:40]} 5. Nxc3 {[%clk 0:02:46.2]}
5... Nf6 {[%clk 0:02:40.6]} 6. Bc4 {[%clk 0:02:45.9]} 6... g6 {[%clk 0:02:31.5]}
7. Bg5 {[%clk 0:02:40]} 7... Bg7 {[%clk 0:02:08.5]} 8. e5 {[%clk 0:02:39.5]}
8... dxe5 {[%clk 0:02:01]} 9. Qxd8+ {[%clk 0:02:37.7]} 9... Kxd8 {[%clk
0:02:01.9]} 10. Nxe5 {[%clk 0:02:37.6]} 10... Ke8 {[%clk 0:01:56.6]} 11. Bxf7+
{[%clk 0:02:36.3]} 11... Kf8 {[%clk 0:01:54]} 12. Bb3 {[%clk 0:02:31.5]} 12...
Nc6 {[%clk 0:01:52.6]} 13. Nf7 {[%clk 0:02:27.4]} 13... Rg8 {[%clk 0:01:46.2]}
14. Nh6 {[%clk 0:02:25.4]} 14... Rh8 {[%clk 0:01:43]} 15. Nf7 {[%clk 0:02:24.7]}
15... Rg8 {[%clk 0:01:34.1]} 16. Nh6 {[%clk 0:02:24.4]} 16... Rh8 {[%clk
0:01:29.9]} 17. Nf7 {[%clk 0:02:24.2]} 1/2-1/2

[Event "Late-Titled-Tuesday-Blitz-April-02-2024"]
[Site "Chess.com"]
[Date "2024.04.02"]
[Round "7"]
[White "bascheyaro"]
[Black "Mikhail_Golubev"]
[Result "1/2-1/2"]
[WhiteElo "2819"]
[BlackElo "2631"]
[TimeControl "180+1"]
[EndTime "15:12:07 PDT"]
[Termination "Game drawn by agreement"]

1. d4 {[%clk 0:03:00.9]} 1... Nf6 {[%clk 0:02:59.4]} 2. Nf3 {[%clk 0:03:01]}
2... d6 {[%clk 0:02:59.1]} 3. Bf4 {[%clk 0:03:01.3]} 3... Nbd7 {[%clk
0:02:58.5]} 4. e3 {[%clk 0:03:00.8]} 4... Nh5 {[%clk 0:02:57.3]} 5. Bg3 {[%clk
0:03:00.6]} 5... Nxg3 {[%clk 0:02:53.8]} 6. hxg3 {[%clk 0:03:01.5]} 6... g6
{[%clk 0:02:54.1]} 7. c4 {[%clk 0:03:01.9]} 7... Bg7 {[%clk 0:02:54.3]} 8. Nc3
{[%clk 0:03:02.4]} 8... c5 {[%clk 0:02:51.1]} 9. Be2 {[%clk 0:03:00.9]} 9... O-O
{[%clk 0:02:39.2]} 10. O-O {[%clk 0:02:54.4]} 10... Nf6 {[%clk 0:02:36.1]} 11.
dxc5 {[%clk 0:02:40.7]} 11... dxc5 {[%clk 0:02:35.6]} 12. Qxd8 {[%clk
0:02:41.6]} 12... Rxd8 {[%clk 0:02:36]} 13. Rad1 {[%clk 0:02:42.4]} 13... Bf5
{[%clk 0:02:26.3]} 14. b3 {[%clk 0:02:33.1]} 14... Ne4 {[%clk 0:02:16.1]} 15.
Nxe4 {[%clk 0:02:18.4]} 15... Bxe4 {[%clk 0:02:15.6]} 16. Rxd8+ {[%clk
0:02:17.7]} 16... Rxd8 {[%clk 0:02:14.7]} 17. Rd1 {[%clk 0:02:17.9]} 17... Rxd1+
{[%clk 0:02:13.6]} 18. Bxd1 {[%clk 0:02:18.8]} 18... Bxf3 {[%clk 0:02:13.6]} 19.
Bxf3 {[%clk 0:02:18.9]} 19... b6 {[%clk 0:02:13.7]} 20. Bc6 {[%clk 0:02:18.5]}
20... Kf8 {[%clk 0:02:12.6]} 21. Kf1 {[%clk 0:02:18.5]} 21... e6 {[%clk
0:02:12.8]} 22. Ke2 {[%clk 0:02:19.4]} 22... Ke7 {[%clk 0:02:13.1]} 23. f4
{[%clk 0:02:19.9]} 23... Kd6 {[%clk 0:02:11.9]} 24. Bb5 {[%clk 0:02:20.4]} 24...
h5 {[%clk 0:02:09.3]} 25. Kf3 {[%clk 0:02:20.3]} 25... Ke7 {[%clk 0:02:04.9]}
26. e4 {[%clk 0:02:20.5]} 26... Bd4 {[%clk 0:02:04.7]} 27. e5 {[%clk 0:02:20.7]}
27... Kf8 {[%clk 0:02:02.9]} 28. g4 {[%clk 0:02:19.4]} 28... hxg4+ {[%clk
0:02:02.7]} 29. Kxg4 {[%clk 0:02:20.3]} 29... Ke7 {[%clk 0:02:02.8]} 30. Kf3
{[%clk 0:02:20.4]} 30... Kf8 {[%clk 0:02:02.8]} 31. g4 {[%clk 0:02:20.9]} 31...
Ke7 {[%clk 0:02:03]} 32. Ke4 {[%clk 0:02:21.4]} 32... Kf8 {[%clk 0:02:01.7]} 33.
f5 {[%clk 0:02:21.9]} 33... gxf5+ {[%clk 0:02:00.2]} 34. gxf5 {[%clk 0:02:22.8]}
34... exf5+ {[%clk 0:01:48]} 35. Kxf5 {[%clk 0:02:23.7]} 35... Ke7 {[%clk
0:01:47.1]} 1/2-1/2

[Event "Late-Titled-Tuesday-Blitz-April-02-2024"]
[Site "Chess.com"]
[Date "2024.04.02"]
[Round "7"]
[White "djano"]
[Black "tgpgoat"]
[Result "1-0"]
[WhiteElo "2643"]
[BlackElo "2432"]
[TimeControl "180+1"]
[EndTime "15:12:15 PDT"]
[Termination "djano won by resignation"]

1. e4 {[%clk 0:03:00.9]} 1... c5 {[%clk 0:02:58.6]} 2. Nc3 {[%clk 0:03:00.7]}
2... e6 {[%clk 0:02:59.1]} 3. f4 {[%clk 0:03:00.4]} 3... Nc6 {[%clk 0:02:59.4]}
4. Nf3 {[%clk 0:03:00.1]} 4... Qc7 {[%clk 0:02:59.6]} 5. Bc4 {[%clk 0:02:46.3]}
5... a6 {[%clk 0:02:59.1]} 6. d3 {[%clk 0:02:45.5]} 6... d6 {[%clk 0:02:57.2]}
7. O-O {[%clk 0:02:44.6]} 7... Nf6 {[%clk 0:02:57.9]} 8. Qe1 {[%clk 0:02:37]}
8... Be7 {[%clk 0:02:57.6]} 9. e5 {[%clk 0:02:35.1]} 9... dxe5 {[%clk
0:02:56.3]} 10. fxe5 {[%clk 0:02:36]} 10... Nd7 {[%clk 0:02:56.3]} 11. Bf4
{[%clk 0:02:32.1]} 11... b5 {[%clk 0:02:54.1]} 12. Bb3 {[%clk 0:02:27.5]} 12...
Bb7 {[%clk 0:02:54.7]} 13. Qg3 {[%clk 0:02:23.5]} 13... g6 {[%clk 0:02:54.4]}
14. Ne4 {[%clk 0:02:21.2]} 14... O-O-O {[%clk 0:02:45.2]} 15. a4 {[%clk
0:02:21.1]} 15... b4 {[%clk 0:02:43.1]} 16. c3 {[%clk 0:02:14.6]} 16... Nb6
{[%clk 0:02:33.8]} 17. Nd6+ {[%clk 0:02:11.2]} 17... Bxd6 {[%clk 0:02:31.1]} 18.
exd6 {[%clk 0:02:12.1]} 18... Qd7 {[%clk 0:02:28.2]} 19. Ne5 {[%clk 0:01:58.3]}
19... Nxe5 {[%clk 0:02:26.2]} 20. Bxe5 {[%clk 0:01:57.9]} 20... Rhg8 {[%clk
0:02:20.4]} 21. cxb4 {[%clk 0:01:56.2]} 21... cxb4 {[%clk 0:02:20.2]} 22. Rac1+
{[%clk 0:01:53.2]} 22... Bc6 {[%clk 0:01:58.5]} 23. a5 {[%clk 0:01:43.9]} 23...
f6 {[%clk 0:01:45.4]} 1-0

[Event "Late-Titled-Tuesday-Blitz-April-02-2024"]
[Site "Chess.com"]
[Date "2024.04.02"]
[Round "7"]
[White "BogdanDeac"]
[Black "Bryanl106"]
[Result "1-0"]
[WhiteElo "3089"]
[BlackElo "2678"]
[TimeControl "180+1"]
[EndTime "15:13:02 PDT"]
[Termination "BogdanDeac won by resignation"]

1. d4 {[%clk 0:03:00.9]} 1... Nf6 {[%clk 0:02:58.7]} 2. c4 {[%clk 0:03:00]} 2...
c5 {[%clk 0:02:58.3]} 3. d5 {[%clk 0:02:58.7]} 3... g6 {[%clk 0:02:59]} 4. Nc3
{[%clk 0:02:58.2]} 4... Bg7 {[%clk 0:02:59.5]} 5. e4 {[%clk 0:02:58.8]} 5... d6
{[%clk 0:03:00.1]} 6. h3 {[%clk 0:02:59.5]} 6... O-O {[%clk 0:03:00.8]} 7. Be3
{[%clk 0:03:00.1]} 7... e6 {[%clk 0:02:57.7]} 8. Nf3 {[%clk 0:02:59.7]} 8...
exd5 {[%clk 0:02:51.3]} 9. cxd5 {[%clk 0:03:00.6]} 9... b5 {[%clk 0:02:49]} 10.
Bxb5 {[%clk 0:02:48.8]} 10... Nxe4 {[%clk 0:02:47.5]} 11. Nxe4 {[%clk
0:02:40.2]} 11... Qa5+ {[%clk 0:02:46.4]} 12. Qd2 {[%clk 0:02:26.8]} 12... Qxb5
{[%clk 0:02:40.7]} 13. Nxd6 {[%clk 0:02:27.1]} 13... Qa6 {[%clk 0:02:40.4]} 14.
Nxc8 {[%clk 0:02:22]} 14... Rxc8 {[%clk 0:02:38.6]} 15. Qe2 {[%clk 0:02:19.1]}
15... Qxe2+ {[%clk 0:02:31.2]} 16. Kxe2 {[%clk 0:02:18.2]} 16... Bxb2 {[%clk
0:02:32.1]} 17. Rab1 {[%clk 0:02:17.8]} 17... Bf6 {[%clk 0:02:30]} 18. Rb7
{[%clk 0:02:00.3]} 18... Na6 {[%clk 0:02:26.4]} 19. a3 {[%clk 0:01:53]} 19...
Rcb8 {[%clk 0:02:09.4]} 20. Rhb1 {[%clk 0:01:49.1]} 20... Rc8 {[%clk 0:02:06.2]}
21. Nd2 {[%clk 0:01:44.3]} 21... c4 {[%clk 0:02:03.7]} 22. Ne4 {[%clk
0:01:40.3]} 22... Be5 {[%clk 0:01:57.2]} 23. Re7 {[%clk 0:01:38.8]} 23... Bc7
{[%clk 0:01:51.8]} 24. Rb7 {[%clk 0:01:22.1]} 24... c3 {[%clk 0:01:31.8]} 25. d6
{[%clk 0:01:19.4]} 25... Bb6 {[%clk 0:01:28.7]} 26. Nf6+ {[%clk 0:01:13.5]} 1-0

[Event "Late-Titled-Tuesday-Blitz-April-02-2024"]
[Site "Chess.com"]
[Date "2024.04.02"]
[Round "7"]
[White "Good_Knight_Kiss"]
[Black "Cuchulin"]
[Result "1-0"]
[WhiteElo "2504"]
[BlackElo "2153"]
[TimeControl "180+1"]
[EndTime "15:13:13 PDT"]
[Termination "Good_Knight_Kiss won by resignation"]

1. e4 {[%clk 0:03:00.9]} 1... c5 {[%clk 0:02:50.8]} 2. Nf3 {[%clk 0:03:00.3]}
2... Nc6 {[%clk 0:02:51]} 3. d4 {[%clk 0:02:59.9]} 3... cxd4 {[%clk 0:02:51.9]}
4. Nxd4 {[%clk 0:02:59.9]} 4... g6 {[%clk 0:02:52.5]} 5. Be3 {[%clk 0:02:59.7]}
5... Bg7 {[%clk 0:02:52.8]} 6. c4 {[%clk 0:02:59.8]} 6... Qb6 {[%clk 0:02:21.8]}
7. Nb5 {[%clk 0:02:50.9]} 7... Qa5+ {[%clk 0:02:16.6]} 8. N1c3 {[%clk
0:02:20.1]} 8... a6 {[%clk 0:02:13.4]} 9. Nd4 {[%clk 0:02:18.9]} 9... Nf6 {[%clk
0:02:10.4]} 10. Nb3 {[%clk 0:02:08.1]} 10... Qc7 {[%clk 0:02:03.7]} 11. Nd5
{[%clk 0:02:02.5]} 11... Nxd5 {[%clk 0:01:59.5]} 12. cxd5 {[%clk 0:02:01.2]}
12... Ne5 {[%clk 0:01:42.8]} 13. Rc1 {[%clk 0:01:58.7]} 13... Qd8 {[%clk
0:01:39.1]} 14. f4 {[%clk 0:01:57.9]} 14... O-O {[%clk 0:01:25.1]} 15. fxe5
{[%clk 0:01:50.8]} 15... Bxe5 {[%clk 0:01:26]} 16. Bd4 {[%clk 0:01:38.5]} 16...
Bf4 {[%clk 0:01:23.5]} 17. Rc3 {[%clk 0:01:36.3]} 17... d6 {[%clk 0:01:21.5]}
18. Be2 {[%clk 0:01:13.4]} 18... Bd7 {[%clk 0:01:17.3]} 19. O-O {[%clk
0:01:11.3]} 19... a5 {[%clk 0:01:12]} 20. Rxf4 {[%clk 0:01:09.9]} 1-0

[Event "Late-Titled-Tuesday-Blitz-April-02-2024"]
[Site "Chess.com"]
[Date "2024.04.02"]
[Round "7"]
[White "kingofthenil"]
[Black "dosto07"]
[Result "1-0"]
[WhiteElo "2790"]
[BlackElo "2469"]
[TimeControl "180+1"]
[EndTime "15:13:25 PDT"]
[Termination "kingofthenil won by resignation"]

1. Nf3 {[%clk 0:02:52.9]} 1... d5 {[%clk 0:03:00.1]} 2. g3 {[%clk 0:02:53]} 2...
Nf6 {[%clk 0:03:00.4]} 3. Bg2 {[%clk 0:02:53.4]} 3... Bf5 {[%clk 0:03:00.7]} 4.
c4 {[%clk 0:02:51.2]} 4... c6 {[%clk 0:03:00]} 5. Qb3 {[%clk 0:02:51.2]} 5...
Qb6 {[%clk 0:03:00]} 6. cxd5 {[%clk 0:02:50.8]} 6... cxd5 {[%clk 0:02:55.4]} 7.
Nc3 {[%clk 0:02:49.8]} 7... e6 {[%clk 0:02:54]} 8. Qxb6 {[%clk 0:02:50.1]} 8...
axb6 {[%clk 0:02:54.1]} 9. Nd4 {[%clk 0:02:51]} 9... Bg6 {[%clk 0:02:50.7]} 10.
Ndb5 {[%clk 0:02:51.2]} 10... Na6 {[%clk 0:02:49.7]} 11. d3 {[%clk 0:02:50.9]}
11... Kd7 {[%clk 0:02:45.6]} 12. Bf4 {[%clk 0:02:48.4]} 12... Be7 {[%clk
0:02:39.3]} 13. O-O {[%clk 0:02:45.7]} 13... Rhc8 {[%clk 0:02:38.6]} 14. e4
{[%clk 0:02:42.6]} 14... Nb4 {[%clk 0:02:19.2]} 15. Rfd1 {[%clk 0:02:24.6]}
15... Bc5 {[%clk 0:01:54.6]} 16. a3 {[%clk 0:02:13]} 16... Nc2 {[%clk 0:01:52]}
17. Rac1 {[%clk 0:02:08.8]} 17... Nd4 {[%clk 0:01:52.3]} 18. exd5 {[%clk
0:02:09.3]} 18... Nxb5 {[%clk 0:01:44.8]} 19. dxe6+ {[%clk 0:02:08.9]} 19...
fxe6 {[%clk 0:01:36.7]} 20. Nxb5 {[%clk 0:02:09.8]} 20... Nd5 {[%clk 0:01:34.9]}
21. Be5 {[%clk 0:02:06.6]} 21... Bf8 {[%clk 0:01:30.2]} 22. Rc4 {[%clk
0:01:51.1]} 22... Rc5 {[%clk 0:01:20.7]} 23. a4 {[%clk 0:01:46.7]} 23... Rac8
{[%clk 0:01:17.5]} 24. b3 {[%clk 0:01:47.1]} 24... Ke8 {[%clk 0:01:04.9]} 25.
Bd4 {[%clk 0:01:40.5]} 25... R5c6 {[%clk 0:00:56.8]} 26. Na7 {[%clk 0:01:40]}
26... Rxc4 {[%clk 0:00:50.2]} 27. dxc4 {[%clk 0:01:40.9]} 27... Nb4 {[%clk
0:00:47]} 28. Nxc8 {[%clk 0:01:37.9]} 1-0

[Event "Late-Titled-Tuesday-Blitz-April-02-2024"]
[Site "Chess.com"]
[Date "2024.04.02"]
[Round "7"]
[White "Laico"]
[Black "ricaurtelopezj1955"]
[Result "1-0"]
[WhiteElo "2399"]
[BlackElo "2174"]
[TimeControl "180+1"]
[EndTime "15:13:30 PDT"]
[Termination "Laico won by resignation"]

1. e4 {[%clk 0:02:55.5]} 1... e5 {[%clk 0:02:56.7]} 2. Nc3 {[%clk 0:02:55.9]}
2... Nf6 {[%clk 0:02:55.3]} 3. f4 {[%clk 0:02:55.3]} 3... d5 {[%clk 0:02:52.9]}
4. fxe5 {[%clk 0:02:55.4]} 4... Nxe4 {[%clk 0:02:48.8]} 5. Qf3 {[%clk
0:02:56.1]} 5... Nc6 {[%clk 0:02:45.8]} 6. Bb5 {[%clk 0:02:54.9]} 6... Nxc3
{[%clk 0:02:40.6]} 7. dxc3 {[%clk 0:02:53.4]} 7... Bc5 {[%clk 0:02:35.6]} 8. Qg3
{[%clk 0:02:52.2]} 8... Bf5 {[%clk 0:01:42.5]} 9. Nf3 {[%clk 0:02:33.1]} 9...
Bg6 {[%clk 0:01:35.4]} 10. Bg5 {[%clk 0:02:30.8]} 10... Qd7 {[%clk 0:01:29.9]}
11. O-O-O {[%clk 0:02:30.4]} 11... O-O {[%clk 0:01:24]} 12. Bc4 {[%clk
0:02:20.7]} 12... Ne7 {[%clk 0:00:59]} 13. Bxe7 {[%clk 0:02:16.3]} 13... Qxe7
{[%clk 0:00:57.1]} 14. Bxd5 {[%clk 0:02:10]} 14... c6 {[%clk 0:00:53]} 15. Bc4
{[%clk 0:02:09.7]} 15... b5 {[%clk 0:00:51.6]} 16. Bd3 {[%clk 0:02:09.3]} 16...
b4 {[%clk 0:00:50.8]} 17. Bxg6 {[%clk 0:01:59.9]} 17... hxg6 {[%clk 0:00:45.8]}
18. cxb4 {[%clk 0:01:58.5]} 18... Bxb4 {[%clk 0:00:44.4]} 19. Ng5 {[%clk
0:01:53.4]} 19... f6 {[%clk 0:00:33.6]} 20. Qb3+ {[%clk 0:01:49.5]} 1-0

[Event "Late-Titled-Tuesday-Blitz-April-02-2024"]
[Site "Chess.com"]
[Date "2024.04.02"]
[Round "7"]
[White "Happy1712Drummer"]
[Black "KnightDuta"]
[Result "1-0"]
[WhiteElo "2471"]
[BlackElo "2735"]
[TimeControl "180+1"]
[EndTime "15:13:32 PDT"]
[Termination "Happy1712Drummer won by resignation"]

1. b3 {[%clk 0:03:00.2]} 1... d5 {[%clk 0:02:59.8]} 2. Bb2 {[%clk 0:03:00.5]}
2... Bf5 {[%clk 0:03:00.2]} 3. f4 {[%clk 0:02:58.1]} 3... Nf6 {[%clk 0:03:00.6]}
4. e3 {[%clk 0:02:57.9]} 4... e6 {[%clk 0:03:00.8]} 5. Nf3 {[%clk 0:02:57.9]}
5... Nbd7 {[%clk 0:03:01.4]} 6. Be2 {[%clk 0:02:55.9]} 6... Bd6 {[%clk
0:03:01.9]} 7. Ne5 {[%clk 0:02:55.1]} 7... c6 {[%clk 0:02:54.7]} 8. O-O {[%clk
0:02:51.3]} 8... Qc7 {[%clk 0:02:54.1]} 9. d4 {[%clk 0:02:39.8]} 9... Ne4 {[%clk
0:02:50.6]} 10. g4 {[%clk 0:02:22.1]} 10... Bg6 {[%clk 0:02:39.1]} 11. f5 {[%clk
0:02:19.1]} 11... Nxe5 {[%clk 0:02:39.4]} 12. dxe5 {[%clk 0:02:16.8]} 12... Bxe5
{[%clk 0:02:40.3]} 13. Bxe5 {[%clk 0:02:07.6]} 13... Qxe5 {[%clk 0:02:41.2]} 14.
Qd4 {[%clk 0:02:07.1]} 14... Qxd4 {[%clk 0:02:34.3]} 15. exd4 {[%clk 0:02:08]}
15... exf5 {[%clk 0:02:34.1]} 16. gxf5 {[%clk 0:02:07.8]} 16... Bxf5 {[%clk
0:02:25]} 17. Rxf5 {[%clk 0:02:06.4]} 17... O-O {[%clk 0:02:25.9]} 18. Bd3
{[%clk 0:02:04.1]} 18... Rae8 {[%clk 0:02:22.9]} 19. Kg2 {[%clk 0:01:54.4]}
19... g6 {[%clk 0:02:21.7]} 20. Rf1 {[%clk 0:01:52.5]} 20... f5 {[%clk
0:02:21.4]} 21. c3 {[%clk 0:01:48.6]} 21... g5 {[%clk 0:02:14.9]} 22. Bxe4
{[%clk 0:01:45.7]} 22... dxe4 {[%clk 0:02:02.4]} 23. Nd2 {[%clk 0:01:43.8]}
23... f4 {[%clk 0:01:54.5]} 24. Nc4 {[%clk 0:01:39.4]} 24... e3 {[%clk
0:01:55.1]} 25. Rae1 {[%clk 0:01:21.9]} 25... Kg7 {[%clk 0:01:54.3]} 26. Ne5
{[%clk 0:01:17.6]} 26... Rd8 {[%clk 0:01:39.6]} 27. b4 {[%clk 0:01:12.6]} 27...
Rf5 {[%clk 0:01:36.2]} 28. Rxe3 {[%clk 0:01:06.5]} 28... Rf6 {[%clk 0:01:17.4]}
1-0

[Event "Late-Titled-Tuesday-Blitz-April-02-2024"]
[Site "Chess.com"]
[Date "2024.04.02"]
[Round "7"]
[White "ritanovikova"]
[Black "BabageldiAnnaberdiyev"]
[Result "0-1"]
[WhiteElo "2185"]
[BlackElo "2585"]
[TimeControl "180+1"]
[EndTime "15:13:32 PDT"]
[Termination "BabageldiAnnaberdiyev won by checkmate"]

1. e4 {[%clk 0:02:59]} 1... e6 {[%clk 0:03:00]} 2. d4 {[%clk 0:02:58.8]} 2... d5
{[%clk 0:03:00.5]} 3. exd5 {[%clk 0:02:59.2]} 3... exd5 {[%clk 0:03:01.4]} 4.
Bd3 {[%clk 0:02:59.9]} 4... Bd6 {[%clk 0:03:01.8]} 5. Nf3 {[%clk 0:03:00.2]}
5... Nc6 {[%clk 0:03:02.1]} 6. h3 {[%clk 0:02:59.7]} 6... Nge7 {[%clk
0:03:01.1]} 7. O-O {[%clk 0:03:00.1]} 7... Bf5 {[%clk 0:03:01.5]} 8. b3 {[%clk
0:02:58]} 8... Qd7 {[%clk 0:02:56.9]} 9. Bxf5 {[%clk 0:02:57]} 9... Qxf5 {[%clk
0:02:55.9]} 10. Ba3 {[%clk 0:02:55.9]} 10... Bxa3 {[%clk 0:02:54.4]} 11. Nxa3
{[%clk 0:02:56.8]} 11... O-O {[%clk 0:02:54.5]} 12. Nb5 {[%clk 0:02:55.2]} 12...
Rac8 {[%clk 0:02:53.9]} 13. c4 {[%clk 0:02:54.4]} 13... a6 {[%clk 0:02:52.9]}
14. Nc3 {[%clk 0:02:54.4]} 14... Rcd8 {[%clk 0:02:51.4]} 15. c5 {[%clk
0:02:53.9]} 15... Ng6 {[%clk 0:02:43.1]} 16. Qb1 {[%clk 0:02:45]} 16... Qh5
{[%clk 0:02:37.3]} 17. Qc1 {[%clk 0:02:37.9]} 17... Rfe8 {[%clk 0:02:31.2]} 18.
Rd1 {[%clk 0:02:26.2]} 18... h6 {[%clk 0:02:21.3]} 19. a3 {[%clk 0:02:23.8]}
19... Qf5 {[%clk 0:02:19]} 20. Qb1 {[%clk 0:02:22.4]} 20... Qf6 {[%clk
0:02:14.5]} 21. b4 {[%clk 0:02:05.4]} 21... Nf4 {[%clk 0:02:14.2]} 22. Qb3
{[%clk 0:01:36.8]} 22... Nxh3+ {[%clk 0:02:07]} 23. Kf1 {[%clk 0:01:36.7]} 23...
Nf4 {[%clk 0:02:04.6]} 24. a4 {[%clk 0:01:22.1]} 24... Qg6 {[%clk 0:01:54.8]}
25. g3 {[%clk 0:01:07.1]} 25... Qg4 {[%clk 0:01:53.4]} 26. gxf4 {[%clk
0:00:50.8]} 26... Qxf3 {[%clk 0:01:50]} 27. Nxd5 {[%clk 0:00:39.6]} 27... Qh1#
{[%clk 0:01:45.9]} 0-1

[Event "Late-Titled-Tuesday-Blitz-April-02-2024"]
[Site "Chess.com"]
[Date "2024.04.02"]
[Round "7"]
[White "santosalberto1987"]
[Black "Romkachess"]
[Result "0-1"]
[WhiteElo "2522"]
[BlackElo "2683"]
[TimeControl "180+1"]
[EndTime "15:13:42 PDT"]
[Termination "Romkachess won by resignation"]

1. e4 {[%clk 0:01:21.1]} 1... c5 {[%clk 0:02:57.9]} 2. Nf3 {[%clk 0:01:21.2]}
2... d6 {[%clk 0:02:53.4]} 3. Bb5+ {[%clk 0:01:21]} 3... Bd7 {[%clk 0:02:50.4]}
4. c4 {[%clk 0:01:21.2]} 4... Nf6 {[%clk 0:02:38.5]} 5. Nc3 {[%clk 0:01:17.3]}
5... e6 {[%clk 0:02:35.6]} 6. Bxd7+ {[%clk 0:01:14.7]} 6... Qxd7 {[%clk
0:02:33.4]} 7. d4 {[%clk 0:01:14]} 7... cxd4 {[%clk 0:02:33.3]} 8. Nxd4 {[%clk
0:01:14.9]} 8... Be7 {[%clk 0:02:33.7]} 9. Be3 {[%clk 0:01:14.2]} 9... O-O
{[%clk 0:02:33.9]} 10. b3 {[%clk 0:01:14]} 10... Nc6 {[%clk 0:02:34.6]} 11. Rc1
{[%clk 0:01:13.1]} 11... a6 {[%clk 0:02:33.3]} 12. O-O {[%clk 0:01:12.1]} 12...
Nxd4 {[%clk 0:02:33.8]} 13. Bxd4 {[%clk 0:01:12.1]} 13... Qc6 {[%clk 0:02:34.7]}
14. f3 {[%clk 0:01:10.3]} 14... Rfd8 {[%clk 0:02:31.6]} 15. Qd2 {[%clk
0:01:09.4]} 15... Rac8 {[%clk 0:02:30.4]} 16. a4 {[%clk 0:01:08.5]} 16... Nd7
{[%clk 0:02:28.4]} 17. Rfd1 {[%clk 0:01:06]} 17... Nc5 {[%clk 0:02:27.7]} 18.
Qb2 {[%clk 0:00:58.4]} 18... Bf8 {[%clk 0:02:23.5]} 19. b4 {[%clk 0:00:56]}
19... Nxa4 {[%clk 0:02:20.1]} 20. Nxa4 {[%clk 0:00:53.9]} 20... Qxa4 {[%clk
0:02:21]} 21. b5 {[%clk 0:00:27.9]} 21... Rxc4 {[%clk 0:02:17.4]} 22. Rxc4
{[%clk 0:00:25.6]} 22... Qxc4 {[%clk 0:01:38.8]} 0-1

[Event "Late-Titled-Tuesday-Blitz-April-02-2024"]
[Site "Chess.com"]
[Date "2024.04.02"]
[Round "7"]
[White "teresin05"]
[Black "Walter_White_Poland"]
[Result "0-1"]
[WhiteElo "2272"]
[BlackElo "2436"]
[TimeControl "180+1"]
[EndTime "15:13:50 PDT"]
[Termination "Walter_White_Poland won by checkmate"]

1. e4 {[%clk 0:02:37.4]} 1... g6 {[%clk 0:02:59.7]} 2. d4 {[%clk 0:02:36.5]}
2... Bg7 {[%clk 0:02:59.8]} 3. Nc3 {[%clk 0:02:37]} 3... d6 {[%clk 0:02:59.7]}
4. f4 {[%clk 0:02:37.5]} 4... Nd7 {[%clk 0:02:55.5]} 5. Nf3 {[%clk 0:02:31.4]}
5... e5 {[%clk 0:02:48.7]} 6. fxe5 {[%clk 0:02:24.3]} 6... dxe5 {[%clk
0:02:48.6]} 7. d5 {[%clk 0:02:24.9]} 7... Ngf6 {[%clk 0:02:46.8]} 8. Be3 {[%clk
0:02:24.6]} 8... O-O {[%clk 0:02:45.4]} 9. Qd2 {[%clk 0:02:24.5]} 9... a6 {[%clk
0:02:43.5]} 10. O-O-O {[%clk 0:02:22.9]} 10... b5 {[%clk 0:02:43]} 11. Kb1
{[%clk 0:02:14.6]} 11... b4 {[%clk 0:02:42.3]} 12. Na4 {[%clk 0:02:14.2]} 12...
Nxe4 {[%clk 0:02:40.2]} 13. Qxb4 {[%clk 0:02:14.4]} 13... Nd6 {[%clk 0:02:24.3]}
14. h4 {[%clk 0:02:12.6]} 14... Rb8 {[%clk 0:02:21.7]} 15. Qd2 {[%clk
0:02:10.1]} 15... Nf5 {[%clk 0:02:12]} 16. Ba7 {[%clk 0:01:56.4]} 16... Rb7
{[%clk 0:02:02.2]} 17. Bf2 {[%clk 0:01:54.8]} 17... e4 {[%clk 0:01:55.9]} 18.
Nd4 {[%clk 0:01:53.5]} 18... e3 {[%clk 0:01:50.1]} 19. Bxe3 {[%clk 0:01:52.7]}
19... Nxe3 {[%clk 0:01:50.2]} 20. Qxe3 {[%clk 0:01:53.6]} 20... Nb6 {[%clk
0:01:37.2]} 21. Nc6 {[%clk 0:01:51.9]} 21... Qd6 {[%clk 0:01:34]} 22. Nxb6
{[%clk 0:01:35.9]} 22... Rxb6 {[%clk 0:01:30]} 23. c3 {[%clk 0:01:35]} 23...
Rxc6 {[%clk 0:01:25.9]} 24. h5 {[%clk 0:01:34.5]} 24... Rc5 {[%clk 0:01:14]} 25.
h6 {[%clk 0:01:33.8]} 25... Bh8 {[%clk 0:01:02.9]} 26. c4 {[%clk 0:01:32.2]}
26... Bf5+ {[%clk 0:01:00.9]} 27. Bd3 {[%clk 0:01:32.9]} 27... Rb8 {[%clk
0:00:58.8]} 28. b3 {[%clk 0:01:32]} 28... Qf6 {[%clk 0:00:55.6]} 29. Rd2 {[%clk
0:01:23.7]} 29... Rxc4 {[%clk 0:00:47.6]} 30. Bxf5 {[%clk 0:01:16.5]} 30... Qa1#
{[%clk 0:00:46.8]} 0-1